fUST/lending_fUST_20240525
["ID","MTS","AMOUNT","RATE_DAILY","PERIOD"]
[327868881,1716566817400,154.98450155,9.999e-05,2]
[327868882,1716566825133,-164.16497373,0.00017248,2]
[327868883,1716566831173,-213.36655761,0.00017248,2]
[327868884,1716566854137,-163.26944534,0.00017247,2]
[327868885,1716566895124,175.72514253,9.999e-05,2]
[327868886,1716566912008,235.5304996,0.00016816,2]
[327868894,1716566945129,-1894.87961524,0.00017245,2]
[327868895,1716566945148,-426.05910799,0.00017246,2]
[327868896,1716566945168,-180.0,0.00017246,2]
[327868897,1716566945187,-175.66325845,0.00017247,2]
[327868898,1716566945206,-223.07296701,0.00017248,2]
[327868899,1716566945226,-1067.47162715,0.00017248,2]
[327868900,1716566945245,-24522.46846866,0.00017248,2]
[327868901,1716566945264,-210.718376,0.00017445,2]
[327868902,1716566945285,-250.0,0.00017537,2]
[327868903,1716566945306,-699.579346,0.00018241,2]
[327868904,1716566945483,-44494.51774247,0.00018607,2]
[327868905,1716566945512,-366.94219892,0.00018878,2]
[327868906,1716566945534,-900.19586761,0.00018978,2]
[327868907,1716566945556,-271.605646,0.00019,2]
[327868908,1716566945575,-168.764017,0.00019178,2]
[327868909,1716566945595,-691.7143485,0.00019264,2]
[327868910,1716566945615,-367.0074481,0.00019267,2]
[327868911,1716566945636,-226.2696189,0.000199,2]
[327868912,1716566951369,183.49771162,0.00018,2]
[327868913,1716566951392,712.81445652,0.00018,2]
[327868931,1716567022693,166.666666,0.000189,2]
[327868932,1716567022714,234.36170377,0.000189,2]
[327868933,1716567022734,258.00182397,0.000189,2]
[327868934,1716567022755,236.01794317,0.000189,2]
[327869033,1716567038302,-896.31216814,0.00019996,2]
[327869035,1716567038312,-154.82968734,0.00019997,2]
[327869037,1716567038322,-435.74110394,0.00019999,2]
[327869039,1716567038332,-154.82968734,0.0002,2]
[327869041,1716567038342,-22859.27879206,0.0002,2]
[327869043,1716567038351,-220.68,0.00020234,3]
[327869045,1716567038363,-662.06,0.00020234,3]
[327869047,1716567038372,-500.0,0.00020243,2]
[327869049,1716567038381,-500.0,0.00020243,2]
[327869051,1716567038390,-500.0,0.00020243,2]
[327869053,1716567038400,-498.10126164,0.00020243,2]
[327869055,1716567038410,-500.0,0.00020243,2]
[327869057,1716567038420,-729.38681682,0.00020243,2]
[327869059,1716567038430,-183.04992868,0.00020243,2]
[327869061,1716567038440,-729.38681682,0.00020243,2]
[327869064,1716567038453,-500.0,0.00020243,2]
[327869066,1716567038463,-500.0,0.00020243,2]
[327869068,1716567038473,-387.78819981,0.00020243,2]
[327869070,1716567038483,-565.60552814,0.00020243,2]
[327869072,1716567038494,-500.0,0.00020243,2]
[327869074,1716567038503,-729.38681682,0.00020243,2]
[327869076,1716567038513,-729.38681682,0.00020243,2]
[327869078,1716567038522,-729.38681682,0.00020243,2]
[327869080,1716567038535,-729.38681682,0.00020243,2]
[327869082,1716567038545,-351.47003119,0.00020243,2]
[327869085,1716567038556,-729.38681682,0.00020243,2]
[327869087,1716567038565,-729.38681682,0.00020243,2]
[327869089,1716567038576,-729.38681682,0.00020243,2]
[327869091,1716567038586,-729.38681682,0.00020243,2]
[327869093,1716567038596,-729.38681682,0.00020243,2]
[327869095,1716567038605,-729.38681682,0.00020243,2]
[327869097,1716567038616,-729.38681682,0.00020243,2]
[327869099,1716567038627,-729.38681682,0.00020243,2]
[327869101,1716567038636,-729.38681682,0.00020243,2]
[327869103,1716567038646,-729.38681682,0.00020243,2]
[327869105,1716567038656,-729.38681682,0.00020243,2]
[327869107,1716567038666,-729.38681682,0.00020243,2]
[327869109,1716567038676,-729.38681682,0.00020243,2]
[327869111,1716567038686,-729.38681682,0.00020243,2]
[327869113,1716567038696,-729.38681682,0.00020243,2]
[327869115,1716567038706,-729.38681682,0.00020243,2]
[327869117,1716567038715,-729.38681682,0.00020243,2]
[327869120,1716567038726,-729.38681682,0.00020243,2]
[327869122,1716567038735,-729.38681682,0.00020243,2]
[327869124,1716567038745,-729.38681682,0.00020243,2]
[327869126,1716567038754,-729.38681682,0.00020243,2]
[327869128,1716567038765,-729.38681682,0.00020243,2]
[327869130,1716567038775,-729.38681682,0.00020243,2]
[327869132,1716567038784,-729.38681682,0.00020243,2]
[327869134,1716567038794,-729.38681682,0.00020243,2]
[327869136,1716567038803,-729.38681682,0.00020243,2]
[327869138,1716567038813,-729.38681682,0.00020243,2]
[327869140,1716567038822,-729.38681682,0.00020243,2]
[327869143,1716567038832,-729.38681682,0.00020243,2]
[327869145,1716567038842,-729.38681682,0.00020243,2]
[327869147,1716567038852,-729.38681682,0.00020243,2]
[327869149,1716567038864,-729.38681682,0.00020243,2]
[327869151,1716567038873,-729.38681682,0.00020243,2]
[327869153,1716567038882,-729.38681682,0.00020243,2]
[327869155,1716567038891,-729.38681682,0.00020243,2]
[327869157,1716567038901,-729.38681682,0.00020243,2]
[327869159,1716567038910,-729.38681682,0.00020243,2]
[327869160,1716567038920,-20205.67010073,0.00020244,11]
[327869163,1716567038930,-1527.30191266,0.00020244,2]
[327869165,1716567038940,-2641.15698736,0.0002028,2]
[327869167,1716567038951,-160.60614219,0.00020281,2]
[327869169,1716567038960,-231.60373928,0.00020281,2]
[327869171,1716567038970,-305.83789225,0.00020281,2]
[327869173,1716567038980,-3518.99978731,0.00020281,2]
[327869175,1716567038989,-155.23277921,0.00020281,2]
[327869177,1716567038998,-216.44657687,0.00020282,2]
[327869179,1716567039008,-309.704664,0.00020282,2]
[327869180,1716567039017,-772.36964669,0.00020282,2]
[327869182,1716567039026,-10679.2389172,0.00020284,2]
[327869184,1716567039036,-366.94219888,0.00020298,2]
[327869187,1716567039045,-245.92298999,0.00020895,2]
[327869188,1716567039055,-531.26583784,0.00020896,2]
[327869191,1716567039065,-274.38861044,0.00020896,2]
[327869193,1716567039074,-550.9904196,0.00020896,2]
[327869195,1716567039084,-285.15949303,0.0002091,2]
[327869197,1716567039093,-528.69445609,0.0002091,2]
[327869198,1716567039103,-155.26394904,0.0002091,2]
[327869200,1716567039116,-1497.03751621,0.0002091,2]
[327869202,1716567039125,-155.09931136,0.0002091,2]
[327869205,1716567039135,-174.67407508,0.0002091,2]
[327869206,1716567039145,-1339.50128837,0.00020911,2]
[327869208,1716567039155,-1984.19654754,0.00020912,2]
[327869210,1716567039164,-1972.55891415,0.00020912,2]
[327869212,1716567039174,-6724.77355733,0.00020912,2]
[327869214,1716567039184,-239.75610434,0.00020913,2]
[327869216,1716567039194,-585.90139677,0.00021,2]
[327869219,1716567039204,-812.21997174,0.00021,2]
[327869220,1716567039214,-375.6154137,0.00021,2]
[327869222,1716567039224,-441.36,0.00021604,3]
[327869223,1716567039233,-366.94219888,0.00021718,2]
[327869224,1716567039243,-166.666666,0.00021918,2]
[327869225,1716567039252,-239.52618922,0.00022,2]
[327869226,1716567039262,-166.666666,0.00022431,2]
[327869227,1716567039271,-166.666666,0.00022944,2]
[327869228,1716567039281,-366.94219888,0.00023137,2]
[327869229,1716567039290,-166.666666,0.00023456,2]
[327869230,1716567039300,-895.04813691,0.000239,2]
[327869231,1716567039309,-166.666666,0.00023969,2]
[327869232,1716567039322,-151.0,0.00023982,5]
[327869233,1716567039335,-1614.41001378,0.00024,2]
[327869234,1716567039349,-261.447007,0.00024384,2]
[327869235,1716567039364,-513.963845,0.00024384,2]
[327869236,1716567039377,-166.666666,0.00024482,2]
[327869237,1716567039389,-150.81901718,0.000245,7]
[327869238,1716567039400,-151.0,0.00024518,5]
[327869239,1716567039412,-366.94219888,0.00024557,2]
[327869240,1716567039424,-500.0,0.00024657,2]
[327869241,1716567039436,-500.0,0.00024657,2]
[327869243,1716567039452,-500.0,0.00024657,2]
[327869244,1716567039464,-500.0,0.00024657,2]
[327869246,1716567039475,-500.0,0.00024657,2]
[327869248,1716567039488,-2576.19,0.00024657,2]
[327869250,1716567039500,-500.0,0.00024657,2]
[327869252,1716567039512,-500.0,0.00024657,2]
[327869255,1716567039526,-500.0,0.00024657,2]
[327869257,1716567039538,-500.0,0.00024657,2]
[327869259,1716567039552,-500.0,0.00024657,2]
[327869262,1716567039563,-500.0,0.00024657,2]
[327869264,1716567039574,-250.0,0.00024657,2]
[327869266,1716567039586,-500.0,0.00024657,2]
[327869268,1716567039598,-270.08,0.00024657,2]
[327869271,1716567039609,-500.0,0.00024657,2]
[327869273,1716567039622,-500.0,0.00024657,2]
[327869275,1716567039634,-500.0,0.00024657,2]
[327869277,1716567039646,-500.0,0.00024657,2]
[327869279,1716567039656,-500.0,0.00024657,2]
[327869282,1716567039667,-500.0,0.00024657,2]
[327869284,1716567039678,-500.0,0.00024657,2]
[327869285,1716567039689,-500.0,0.00024657,2]
[327869288,1716567039701,-381.1,0.00024657,2]
[327869290,1716567039712,-500.0,0.00024657,2]
[327869292,1716567039723,-500.0,0.00024657,2]
[327869294,1716567039735,-592.39,0.00024657,2]
[327869296,1716567039747,-500.0,0.00024657,2]
[327869298,1716567039759,-500.0,0.00024657,2]
[327869301,1716567039771,-500.0,0.00024657,2]
[327869303,1716567039782,-500.0,0.00024657,2]
[327869305,1716567039795,-817.63,0.00024657,2]
[327869308,1716567039808,-541.43,0.00024657,2]
[327869310,1716567039820,-500.0,0.00024657,2]
[327869312,1716567039832,-500.0,0.00024657,2]
[327869314,1716567039843,-334.69,0.00024657,2]
[327869316,1716567039853,-501.54,0.00024657,2]
[327869319,1716567039865,-500.0,0.00024657,2]
[327869321,1716567039875,-764.96,0.00024657,2]
[327869323,1716567039885,-500.0,0.00024657,2]
[327869325,1716567039896,-571.51,0.00024657,2]
[327869327,1716567039908,-959.3,0.00024657,2]
[327869329,1716567039920,-500.0,0.00024657,2]
[327869332,1716567039932,-155.71554244,0.00024657,2]
[327869334,1716567039945,-500.0,0.00024657,2]
[327869336,1716567039956,-498.20330598,0.00024657,2]
[327869338,1716567039966,-760.97,0.00024657,2]
[327869341,1716567039977,-500.0,0.00024657,2]
[327869343,1716567039987,-153.4307295,0.00024657,2]
[327869345,1716567039998,-500.0,0.00024657,2]
[327869347,1716567040010,-500.0,0.00024657,2]
[327869349,1716567040021,-500.0,0.00024657,2]
[327869351,1716567040031,-500.0,0.00024657,2]
[327869354,1716567040042,-500.0,0.00024657,2]
[327869356,1716567040052,-581.95,0.00024657,2]
[327869358,1716567040063,-500.0,0.00024657,2]
[327869360,1716567040073,-500.0,0.00024657,2]
[327869362,1716567040084,-500.96170455,0.00024657,2]
[327869364,1716567040095,-500.0,0.00024657,2]
[327869366,1716567040106,-500.0,0.00024657,2]
[327869368,1716567040120,-509.78913471,0.00024657,2]
[327869370,1716567040131,-500.0,0.00024657,2]
[327869373,1716567040142,-863.24,0.00024657,2]
[327869376,1716567040153,-500.0,0.00024657,2]
[327869378,1716567040165,-500.0,0.00024657,2]
[327869380,1716567040176,-500.0,0.00024657,2]
[327869382,1716567040188,-500.0,0.00024657,2]
[327869384,1716567040199,-500.0,0.00024657,2]
[327869387,1716567040209,-500.0,0.00024657,2]
[327869390,1716567040220,-500.0,0.00024657,2]
[327869392,1716567040231,-500.0,0.00024657,2]
[327869394,1716567040243,-500.0,0.00024657,2]
[327869396,1716567040254,-500.0,0.00024657,2]
[327869398,1716567040264,-500.0,0.00024657,2]
[327869399,1716567040274,-500.0,0.00024657,2]
[327869400,1716567040285,-391.74259101,0.00024657,2]
[327869401,1716567040295,-500.0,0.00024657,2]
[327869402,1716567040306,-500.0,0.00024657,2]
[327869403,1716567040316,-500.0,0.00024657,2]
[327869404,1716567040327,-500.0,0.00024657,2]
[327869405,1716567040338,-500.0,0.00024657,2]
[327869406,1716567040349,-500.0,0.00024657,2]
[327869407,1716567040360,-500.0,0.00024657,2]
[327869408,1716567040373,-500.0,0.00024657,2]
[327869409,1716567040384,-553.94,0.00024657,2]
[327869410,1716567040395,-500.0,0.00024657,2]
[327869411,1716567040406,-500.61117732,0.00024657,2]
[327869412,1716567040417,-500.0,0.00024657,2]
[327869413,1716567040428,-500.0,0.00024657,2]
[327869414,1716567040439,-500.0,0.00024657,2]
[327869415,1716567040455,-500.0,0.00024657,2]
[327869416,1716567040467,-500.0,0.00024657,2]
[327869417,1716567040478,-500.0,0.00024657,2]
[327869418,1716567040491,-500.0,0.00024657,2]
[327869419,1716567040501,-509.57,0.00024657,2]
[327869420,1716567040513,-501.37784632,0.00024657,2]
[327869421,1716567040523,-500.0,0.00024657,2]
[327869422,1716567040537,-500.0,0.00024657,2]
[327869424,1716567040548,-500.0,0.00024657,2]
[327869426,1716567040559,-500.0,0.00024657,3]
[327869428,1716567040570,-500.0,0.00024657,4]
[327869430,1716567040580,-525.0,0.00024657,5]
[327869432,1716567040592,-500.48298263,0.00024657,2]
[327869435,1716567040602,-500.0,0.00024657,2]
[327869437,1716567040615,-500.50981454,0.00024657,2]
[327869439,1716567040626,-500.99073167,0.00024657,2]
[327869441,1716567040636,-500.0,0.00024657,2]
[327869443,1716567040647,-823.58,0.00024657,2]
[327869445,1716567040657,-500.0,0.00024657,2]
[327869447,1716567040668,-500.28676331,0.00024657,2]
[327869449,1716567040678,-500.0,0.00024657,2]
[327869452,1716567040689,-501.30462836,0.00024657,2]
[327869454,1716567040699,-1088.57,0.00024657,2]
[327869456,1716567040712,-500.0,0.00024657,2]
[327869458,1716567040722,-500.0,0.00024657,2]
[327869460,1716567040733,-500.0,0.00024657,2]
[327869462,1716567040743,-500.0,0.00024657,3]
[327869465,1716567040755,-500.0,0.00024657,2]
[327869467,1716567040765,-500.0,0.00024657,4]
[327869469,1716567040776,-500.0,0.00024657,5]
[327869471,1716567040787,-500.0,0.00024657,6]
[327869473,1716567040798,-500.0,0.00024657,2]
[327869476,1716567040809,-500.0,0.00024657,2]
[327869478,1716567040820,-500.0,0.00024657,2]
[327869480,1716567040830,-500.0,0.00024657,2]
[327869482,1716567040841,-2091.69,0.00024657,2]
[327869484,1716567040852,-500.0,0.00024657,2]
[327869486,1716567040863,-829.88,0.00024657,2]
[327869488,1716567040875,-500.0,0.00024657,2]
[327869489,1716567040887,-752.81,0.00024657,2]
[327869490,1716567040898,-749.76,0.00024657,2]
[327869491,1716567040908,-5642.55,0.00024657,2]
[327869492,1716567040919,-679.89,0.00024657,2]
[327869493,1716567040930,-500.0,0.00024657,2]
[327869494,1716567040941,-500.0,0.00024657,2]
[327869495,1716567040952,-500.0,0.00024657,2]
[327869497,1716567040962,-500.0,0.00024657,2]
[327869499,1716567040971,-2044.84,0.00024657,2]
[327869500,1716567040980,-500.0,0.00024657,2]
[327869502,1716567040989,-500.0,0.00024657,2]
[327869514,1716567041175,-500.0,0.00024657,2]
[327869515,1716567041188,-845.71,0.00024657,2]
[327869516,1716567041198,-745.53,0.00024657,2]
[327869517,1716567041207,-611.91,0.00024657,2]
[327869518,1716567041216,-1215.4,0.00024657,2]
[327869519,1716567041226,-1070.15,0.00024657,3]
[327869520,1716567041235,-1070.15,0.00024657,3]
[327869521,1716567041245,-1070.15,0.00024657,3]
[327869522,1716567041254,-1070.15,0.00024657,3]
[327869523,1716567041263,-1070.15,0.00024657,3]
[327869524,1716567041272,-1070.15,0.00024657,3]
[327869525,1716567041282,-500.0,0.00024657,2]
[327869526,1716567041291,-500.0,0.00024657,2]
[327869527,1716567041301,-6209.79,0.00024657,2]
[327869528,1716567041310,-500.0,0.00024657,2]
[327869529,1716567041319,-500.0,0.00024657,2]
[327869530,1716567041328,-500.0,0.00024657,2]
[327869531,1716567041337,-500.0,0.00024657,2]
[327869532,1716567041346,-2155.06,0.00024657,2]
[327869533,1716567041355,-7085.49,0.00024657,2]
[327869534,1716567041365,-500.0,0.00024657,2]
[327869535,1716567041374,-981.33,0.00024657,2]
[327869536,1716567041383,-500.0,0.00024657,2]
[327869537,1716567041393,-500.0,0.00024657,2]
[327869538,1716567041402,-500.0,0.00024657,2]
[327869539,1716567041411,-500.0,0.00024657,2]
[327869540,1716567041421,-500.0,0.00024657,2]
[327869541,1716567041430,-500.0,0.00024657,2]
[327869542,1716567041439,-500.0,0.00024657,2]
[327869543,1716567041449,-321.24535887,0.00024657,2]
[327869544,1716567041461,-774.86,0.00024657,2]
[327869545,1716567041471,-500.0,0.00024657,2]
[327869546,1716567041480,-500.0,0.00024657,2]
[327869547,1716567041490,-500.0,0.00024657,2]
[327869548,1716567041499,-500.0,0.00024657,2]
[327869549,1716567041508,-500.0,0.00024657,2]
[327869550,1716567041518,-500.0,0.00024657,2]
[327869551,1716567041528,-539.0,0.00024657,2]
[327869552,1716567041539,-500.0,0.00024657,2]
[327869553,1716567041549,-630.98,0.00024657,2]
[327869554,1716567041559,-500.0,0.00024657,2]
[327869555,1716567041572,-500.0,0.00024657,2]
[327869556,1716567041582,-4150.53,0.00024657,2]
[327869557,1716567041591,-500.0,0.00024657,2]
[327869558,1716567041601,-500.0,0.00024657,2]
[327869559,1716567041610,-900.19586757,0.00024738,2]
[327869560,1716567041621,-1070.15,0.0002493,3]
[327869561,1716567041630,-538.09902093,0.00024931,3]
[327869562,1716567041639,-500.0,0.00024931,3]
[327869563,1716567041650,-500.0,0.00024931,3]
[327869564,1716567041660,-2576.19,0.00024931,3]
[327869565,1716567041670,-288.08997454,0.00024931,3]
[327869566,1716567041680,-317.14,0.00024931,3]
[327869567,1716567041692,-500.0,0.00024931,3]
[327869568,1716567041701,-500.0,0.00024931,3]
[327869569,1716567041711,-500.0,0.00024931,3]
[327869570,1716567041721,-500.0,0.00024931,3]
[327869571,1716567041732,-250.0,0.00024931,3]
[327869572,1716567041742,-500.0,0.00024931,3]
[327869573,1716567041751,-500.0,0.00024931,3]
[327869574,1716567041762,-500.0,0.00024931,3]
[327869575,1716567041773,-500.0,0.00024931,3]
[327869576,1716567041782,-500.0,0.00024931,3]
[327869577,1716567041793,-500.0,0.00024931,3]
[327869578,1716567041803,-500.0,0.00024931,3]
[327869579,1716567041815,-183.66251676,0.00024931,3]
[327869580,1716567041826,-500.0,0.00024931,3]
[327869581,1716567041835,-500.0,0.00024931,3]
[327869582,1716567041845,-592.39,0.00024931,3]
[327869583,1716567041854,-500.0,0.00024931,3]
[327869584,1716567041865,-500.0,0.00024931,3]
[327869585,1716567041874,-500.0,0.00024931,3]
[327869586,1716567041883,-817.63,0.00024931,3]
[327869587,1716567041893,-541.43,0.00024931,3]
[327869588,1716567041902,-500.0,0.00024931,3]
[327869589,1716567041912,-500.0,0.00024931,3]
[327869590,1716567041923,-501.54,0.00024931,3]
[327869591,1716567041932,-291.78718954,0.00024931,3]
[327869592,1716567041943,-764.96,0.00024931,3]
[327869593,1716567041953,-500.0,0.00024931,3]
[327869594,1716567041962,-571.51,0.00024931,3]
[327869595,1716567041972,-959.3,0.00024931,3]
[327869596,1716567041981,-500.0,0.00024931,3]
[327869597,1716567041991,-500.0,0.00024931,3]
[327869598,1716567042000,-760.97,0.00024931,3]
[327869599,1716567042009,-500.0,0.00024931,3]
[327869600,1716567042018,-500.0,0.00024931,3]
[327869601,1716567042027,-500.0,0.00024931,3]
[327869602,1716567042037,-500.0,0.00024931,3]
[327869603,1716567042046,-500.0,0.00024931,3]
[327869604,1716567042055,-500.0,0.00024931,3]
[327869605,1716567042064,-581.95,0.00024931,3]
[327869606,1716567042073,-500.0,0.00024931,3]
[327869607,1716567042082,-500.0,0.00024931,3]
[327869608,1716567042092,-500.0,0.00024931,3]
[327869609,1716567042100,-863.24,0.00024931,3]
[327869610,1716567042110,-500.0,0.00024931,3]
[327869612,1716567042119,-500.0,0.00024931,3]
[327869614,1716567042128,-500.0,0.00024931,3]
[327869615,1716567042137,-500.0,0.00024931,3]
[327869617,1716567042146,-500.0,0.00024931,3]
[327869618,1716567042155,-351.2,0.00024931,3]
[327869619,1716567042164,-500.0,0.00024931,3]
[327869620,1716567042173,-500.0,0.00024931,3]
[327869621,1716567042182,-553.94,0.00024931,3]
[327869622,1716567042192,-500.0,0.00024931,3]
[327869623,1716567042201,-500.0,0.00024931,3]
[327869624,1716567042210,-500.0,0.00024931,3]
[327869625,1716567042219,-500.0,0.00024931,3]
[327869626,1716567042228,-509.57,0.00024931,3]
[327869627,1716567042238,-410.84,0.00024931,3]
[327869628,1716567042246,-500.0,0.00024931,3]
[327869629,1716567042256,-500.0,0.00024931,3]
[327869630,1716567042265,-823.58,0.00024931,3]
[327869631,1716567042274,-500.0,0.00024931,3]
[327869632,1716567042283,-500.0,0.00024931,3]
[327869633,1716567042292,-1088.57,0.00024931,3]
[327869634,1716567042301,-500.0,0.00024931,3]
[327869635,1716567042310,-500.0,0.00024931,3]
[327869636,1716567042319,-500.0,0.00024931,3]
[327869637,1716567042330,-500.0,0.00024931,3]
[327869638,1716567042339,-500.0,0.00024931,3]
[327869639,1716567042348,-500.0,0.00024931,3]
[327869640,1716567042357,-2091.69,0.00024931,3]
[327869641,1716567042366,-500.0,0.00024931,3]
[327869642,1716567042376,-829.88,0.00024931,3]
[327869643,1716567042385,-752.81,0.00024931,3]
[327869644,1716567042394,-749.76,0.00024931,3]
[327869645,1716567042403,-5642.55,0.00024931,3]
[327869646,1716567042413,-679.89,0.00024931,3]
[327869647,1716567042422,-500.0,0.00024931,3]
[327869648,1716567042431,-500.0,0.00024931,3]
[327869649,1716567042440,-500.0,0.00024931,3]
[327869650,1716567042455,-2044.84,0.00024931,3]
[327869652,1716567042465,-500.0,0.00024931,3]
[327869654,1716567042474,-500.0,0.00024931,3]
[327869655,1716567042483,-220.18273684,0.00024931,3]
[327869656,1716567042493,-845.71,0.00024931,3]
[327869657,1716567042502,-745.53,0.00024931,3]
[327869658,1716567042512,-611.91,0.00024931,3]
[327869659,1716567042521,-1215.4,0.00024931,3]
[327869660,1716567042532,-500.0,0.00024931,3]
[327869661,1716567042542,-500.0,0.00024931,3]
[327869662,1716567042552,-6209.79,0.00024931,3]
[327869663,1716567042561,-500.0,0.00024931,3]
[327869664,1716567042570,-500.0,0.00024931,3]
[327869665,1716567042580,-500.0,0.00024931,3]
[327869666,1716567042589,-500.0,0.00024931,3]
[327869667,1716567042599,-2155.06,0.00024931,3]
[327869668,1716567042608,-7085.49,0.00024931,3]
[327869669,1716567042620,-500.0,0.00024931,3]
[327869670,1716567042630,-981.33,0.00024931,3]
[327869671,1716567042638,-500.0,0.00024931,3]
[327869672,1716567042648,-500.0,0.00024931,3]
[327869673,1716567042657,-500.0,0.00024931,3]
[327869674,1716567042667,-500.0,0.00024931,3]
[327869675,1716567042676,-500.0,0.00024931,3]
[327869676,1716567042685,-500.0,0.00024931,3]
[327869677,1716567042695,-774.86,0.00024931,3]
[327869678,1716567042704,-500.0,0.00024931,3]
[327869679,1716567042714,-646.74084159,0.00024931,3]
[327869680,1716567042723,-500.0,0.00024931,3]
[327869681,1716567042732,-500.0,0.00024931,3]
[327869682,1716567042741,-500.0,0.00024931,3]
[327869683,1716567042750,-539.0,0.00024931,3]
[327869684,1716567042759,-500.0,0.00024931,3]
[327869685,1716567042769,-630.98,0.00024931,3]
[327869686,1716567042780,-500.0,0.00024931,3]
[327869687,1716567042791,-500.0,0.00024931,3]
[327869688,1716567042800,-4150.53,0.00024931,3]
[327869689,1716567042810,-500.0,0.00024931,3]
[327869692,1716567042819,-500.0,0.00024931,3]
[327869694,1716567042828,-1070.15,0.00024999,3]
[327869696,1716567042837,-150.81901718,0.00025,4]
[327869698,1716567042846,-401.04849883,0.00025,2]
[327869700,1716567042856,-13369.62058427,0.00025,2]
[327869701,1716567042867,-151.0,0.00025054,5]
[327869702,1716567042876,-1070.15,0.00025204,3]
[327869703,1716567042885,-172.89503222,0.00025205,4]
[327869704,1716567042894,-500.0,0.00025205,4]
[327869705,1716567042903,-2576.19,0.00025205,4]
[327869706,1716567042912,-500.0,0.00025205,4]
[327869707,1716567042921,-223.63706034,0.00025205,4]
[327869708,1716567042931,-369.07192742,0.00025205,4]
[327869709,1716567042940,-500.0,0.00025205,4]
[327869710,1716567042950,-500.0,0.00025205,4]
[327869711,1716567042959,-500.0,0.00025205,4]
[327869712,1716567042969,-500.0,0.00025205,4]
[327869713,1716567042980,-500.0,0.00025205,4]
[327869714,1716567042989,-500.0,0.00025205,4]
[327869715,1716567042999,-500.0,0.00025205,4]
[327869716,1716567043009,-500.0,0.00025205,4]
[327869717,1716567043019,-592.39,0.00025205,4]
[327869718,1716567043028,-500.0,0.00025205,4]
[327869719,1716567043040,-500.0,0.00025205,4]
[327869720,1716567043049,-500.0,0.00025205,4]
[327869721,1716567043059,-817.63,0.00025205,4]
[327869722,1716567043068,-541.43,0.00025205,4]
[327869723,1716567043078,-500.0,0.00025205,4]
[327869724,1716567043088,-500.0,0.00025205,4]
[327869725,1716567043097,-501.54,0.00025205,4]
[327869726,1716567043107,-764.96,0.00025205,4]
[327869727,1716567043116,-500.0,0.00025205,4]
[327869728,1716567043126,-571.51,0.00025205,4]
[327869729,1716567043135,-959.3,0.00025205,4]
[327869730,1716567043144,-500.0,0.00025205,4]
[327869731,1716567043154,-500.0,0.00025205,4]
[327869732,1716567043163,-760.97,0.00025205,4]
[327869733,1716567043173,-500.0,0.00025205,4]
[327869736,1716567043182,-500.0,0.00025205,4]
[327869738,1716567043192,-500.0,0.00025205,4]
[327869740,1716567043202,-500.0,0.00025205,4]
[327869743,1716567043211,-500.0,0.00025205,4]
[327869747,1716567043220,-500.0,0.00025205,4]
[327869751,1716567043230,-581.95,0.00025205,4]
[327869753,1716567043239,-500.0,0.00025205,4]
[327869755,1716567043249,-500.0,0.00025205,4]
[327869757,1716567043258,-500.0,0.00025205,4]
[327869759,1716567043267,-863.24,0.00025205,4]